[Event "Betsys MČR v online bleskovém šachu 2021"]
[Site "Chess.com"]
[Date "2021.04.17"]
[Round "7"]
[White "Mikulas19"]
[Black "Hanicka1517"]
[Result "1-0"]
[WhiteElo "1862"]
[BlackElo "1622"]
[TimeControl "180+1"]
[EndTime "10:12:05 PDT"]
[Termination "Uživatel Mikulas19 zvítězil po vzdání soupeře"]

1. e4 {[%clk 0:03:00.9]} 1... e6 {[%clk 0:02:59.9]} 2. d4 {[%clk 0:02:59.9]}
2... d5 {[%clk 0:03:00.2]} 3. Nd2 {[%clk 0:02:59.9]} 3... Nf6 {[%clk 0:02:59.4]}
4. e5 {[%clk 0:02:56.8]} 4... Nfd7 {[%clk 0:02:59.4]} 5. Ne2 {[%clk 0:02:51]}
5... c5 {[%clk 0:02:58.9]} 6. c3 {[%clk 0:02:51.1]} 6... Nc6 {[%clk 0:02:59.1]}
7. f4 {[%clk 0:02:43.4]} 7... Be7 {[%clk 0:02:55.2]} 8. Nf3 {[%clk 0:02:39.7]}
8... O-O {[%clk 0:02:55.2]} 9. Be3 {[%clk 0:02:30.9]} 9... Qb6 {[%clk
0:02:54.1]} 10. Qd2 {[%clk 0:02:28.8]} 10... cxd4 {[%clk 0:02:51.2]} 11. Nexd4
{[%clk 0:02:26.7]} 11... Bc5 {[%clk 0:02:42.5]} 12. Be2 {[%clk 0:02:23.2]} 12...
Nxd4 {[%clk 0:02:41.9]} 13. Bxd4 {[%clk 0:02:19.9]} 13... Bxd4 {[%clk
0:02:38.9]} 14. Nxd4 {[%clk 0:02:19.7]} 14... f6 {[%clk 0:02:37]} 15. exf6
{[%clk 0:02:06.2]} 15... Nxf6 {[%clk 0:02:36.4]} 16. O-O {[%clk 0:02:01.9]}
16... Ne4 {[%clk 0:02:35.1]} 17. Qc2 {[%clk 0:01:56.9]} 17... Bd7 {[%clk
0:02:29.4]} 18. Kh1 {[%clk 0:01:55.8]} 18... Rf7 {[%clk 0:02:24.9]} 19. Bd3
{[%clk 0:01:51.6]} 19... Nf6 {[%clk 0:02:22.1]} 20. Rae1 {[%clk 0:01:45.3]}
20... Raf8 {[%clk 0:02:15.2]} 21. g3 {[%clk 0:01:42.9]} 21... h6 {[%clk
0:02:12.9]} 22. Kg2 {[%clk 0:01:37.1]} 22... a6 {[%clk 0:01:58.3]} 23. Qe2
{[%clk 0:01:35.5]} 23... Re8 {[%clk 0:01:52.9]} 24. Nf3 {[%clk 0:01:22.7]} 24...
Bb5 {[%clk 0:01:39.5]} 25. Bxb5 {[%clk 0:01:16]} 25... Qxb5 {[%clk 0:01:39.4]}
26. Qxb5 {[%clk 0:01:14.4]} 26... axb5 {[%clk 0:01:39.5]} 27. Nd4 {[%clk
0:01:12.7]} 27... Ne4 {[%clk 0:01:30.8]} 28. Nxb5 {[%clk 0:01:08.9]} 28... Ra8
{[%clk 0:01:29.6]} 29. a3 {[%clk 0:00:59.9]} 29... Ra5 {[%clk 0:01:25.3]} 30.
Nd4 {[%clk 0:00:54.4]} 30... Re7 {[%clk 0:01:11.3]} 31. Ra1 {[%clk 0:00:43.1]}
31... Ra6 {[%clk 0:00:56.7]} 32. a4 {[%clk 0:00:39.7]} 32... Rb6 {[%clk
0:00:56.7]} 33. Ra2 {[%clk 0:00:33.5]} 33... Nd2 {[%clk 0:00:52.5]} 34. Re1
{[%clk 0:00:29.3]} 34... Nc4 {[%clk 0:00:51]} 35. b4 {[%clk 0:00:27.9]} 35... e5
{[%clk 0:00:40.8]} 36. fxe5 {[%clk 0:00:25.3]} 36... Rxe5 {[%clk 0:00:35.4]} 37.
Rxe5 {[%clk 0:00:23.4]} 37... Nxe5 {[%clk 0:00:35.5]} 38. a5 {[%clk 0:00:23]}
38... Rf6 {[%clk 0:00:33.2]} 39. Rf2 {[%clk 0:00:21.1]} 39... Rxf2+ {[%clk
0:00:23.3]} 40. Kxf2 {[%clk 0:00:22]} 40... Nd3+ {[%clk 0:00:23.5]} 41. Ke3
{[%clk 0:00:20.6]} 41... Nc1 {[%clk 0:00:21.1]} 42. b5 {[%clk 0:00:19.7]} 42...
Na2 {[%clk 0:00:20.4]} 43. a6 {[%clk 0:00:18.5]} 43... bxa6 {[%clk 0:00:19.5]}
44. bxa6 {[%clk 0:00:16.7]} 44... Nxc3 {[%clk 0:00:19.9]} 45. a7 {[%clk
0:00:16.1]} 45... Nd1+ {[%clk 0:00:20.3]} 46. Kf3 {[%clk 0:00:14.8]} 1-0

[Event "Betsys MČR v online bleskovém šachu 2021"]
[Site "Chess.com"]
[Date "2021.04.17"]
[Round "7"]
[White "youhy"]
[Black "hever99"]
[Result "1/2-1/2"]
[WhiteElo "1782"]
[BlackElo "2044"]
[TimeControl "180+1"]
[EndTime "10:12:07 PDT"]
[Termination "Remíza opakováním pozice"]

1. d4 {[%clk 0:03:00.9]} 1... Nf6 {[%clk 0:02:09.8]} 2. Nf3 {[%clk 0:02:59.2]}
2... g6 {[%clk 0:02:09.1]} 3. c4 {[%clk 0:02:56.2]} 3... Bg7 {[%clk 0:02:07.4]}
4. g3 {[%clk 0:02:55.6]} 4... c6 {[%clk 0:02:06.4]} 5. Bg2 {[%clk 0:02:54.9]}
5... d5 {[%clk 0:02:06.7]} 6. O-O {[%clk 0:02:54.3]} 6... O-O {[%clk 0:02:06.1]}
7. Nbd2 {[%clk 0:02:47.2]} 7... Qb6 {[%clk 0:01:58.6]} 8. b3 {[%clk 0:02:42.8]}
8... Bf5 {[%clk 0:01:55.9]} 9. Bb2 {[%clk 0:02:31.1]} 9... Ne4 {[%clk
0:01:41.4]} 10. Nxe4 {[%clk 0:01:52.2]} 10... dxe4 {[%clk 0:01:39.5]} 11. Ne5
{[%clk 0:01:48]} 11... Na6 {[%clk 0:01:28.7]} 12. e3 {[%clk 0:01:28.5]} 12...
Rfd8 {[%clk 0:01:27.7]} 13. Qc2 {[%clk 0:01:09.2]} 13... Nb4 {[%clk 0:01:25.5]}
14. Qb1 {[%clk 0:01:04.2]} 14... Bxe5 {[%clk 0:01:20.5]} 15. dxe5 {[%clk
0:01:01.7]} 15... Nd3 {[%clk 0:01:16.4]} 16. g4 {[%clk 0:00:45.6]} 16... Bxg4
{[%clk 0:01:07.3]} 17. Bxe4 {[%clk 0:00:45]} 17... Nxb2 {[%clk 0:01:06.9]} 18.
Qxb2 {[%clk 0:00:42.5]} 18... Qa5 {[%clk 0:00:55.4]} 19. b4 {[%clk 0:00:30.1]}
19... Qc7 {[%clk 0:00:54.4]} 20. Bg2 {[%clk 0:00:14.2]} 20... Qd7 {[%clk
0:00:44]} 21. f3 {[%clk 0:00:12.6]} 21... Bh3 {[%clk 0:00:41.7]} 22. Rfd1 {[%clk
0:00:11]} 22... Qf5 {[%clk 0:00:40.2]} 23. Bxh3 {[%clk 0:00:08.1]} 23... Qxh3
{[%clk 0:00:40]} 24. Qg2 {[%clk 0:00:07.1]} 24... Qf5 {[%clk 0:00:36.8]} 25. Qg3
{[%clk 0:00:04.5]} 25... Qc2 {[%clk 0:00:33.3]} 26. Qe1 {[%clk 0:00:02.1]} 26...
Qxc4 {[%clk 0:00:17.7]} 27. Rxd8+ {[%clk 0:00:02.5]} 27... Rxd8 {[%clk
0:00:16.8]} 28. Rd1 {[%clk 0:00:03.4]} 28... Rxd1 {[%clk 0:00:13]} 29. Qxd1
{[%clk 0:00:04.3]} 29... Qxb4 {[%clk 0:00:13]} 30. Qd8+ {[%clk 0:00:04.2]} 30...
Kg7 {[%clk 0:00:13.3]} 31. Kg2 {[%clk 0:00:02.3]} 31... Qb2+ {[%clk 0:00:11.6]}
32. Kg3 {[%clk 0:00:02.6]} 32... Qxa2 {[%clk 0:00:10.7]} 33. Qxe7 {[%clk
0:00:02.4]} 33... Qa6 {[%clk 0:00:09.6]} 34. Qf6+ {[%clk 0:00:02.2]} 34... Kg8
{[%clk 0:00:09]} 35. Qd8+ {[%clk 0:00:02]} 35... Kg7 {[%clk 0:00:09]} 36. Qf6+
{[%clk 0:00:02.5]} 36... Kg8 {[%clk 0:00:07.9]} 37. Qd8+ {[%clk 0:00:02.5]}
37... Kg7 {[%clk 0:00:08.1]} 38. Qf6+ {[%clk 0:00:03.1]} 1/2-1/2

[Event "Betsys MČR v online bleskovém šachu 2021"]
[Site "Chess.com"]
[Date "2021.04.17"]
[Round "7"]
[White "PetrSoucek"]
[Black "FMD-MP"]
[Result "1-0"]
[WhiteElo "2010"]
[BlackElo "1748"]
[TimeControl "180+1"]
[EndTime "10:12:07 PDT"]
[Termination "Uživatel PetrSoucek zvítězil na čas"]

1. e4 {[%clk 0:03:00.9]} 1... c5 {[%clk 0:02:59.3]} 2. a3 {[%clk 0:02:57.8]}
2... Nc6 {[%clk 0:02:59.2]} 3. b4 {[%clk 0:02:57.5]} 3... cxb4 {[%clk
0:02:56.8]} 4. axb4 {[%clk 0:02:58.4]} 4... Nxb4 {[%clk 0:02:49.4]} 5. c3 {[%clk
0:02:58.4]} 5... Nc6 {[%clk 0:02:49]} 6. d4 {[%clk 0:02:59.3]} 6... d5 {[%clk
0:02:45.6]} 7. exd5 {[%clk 0:03:00.2]} 7... Qxd5 {[%clk 0:02:45]} 8. Na3 {[%clk
0:03:00.4]} 8... Qd8 {[%clk 0:02:34.6]} 9. Nb5 {[%clk 0:02:54.1]} 9... Bd7
{[%clk 0:02:25.8]} 10. d5 {[%clk 0:02:34.9]} 10... Ne5 {[%clk 0:02:10]} 11. Qe2
{[%clk 0:01:57.8]} 11... Qb6 {[%clk 0:01:48.7]} 12. Be3 {[%clk 0:01:33.5]} 12...
Bxb5 {[%clk 0:01:19.4]} 13. Qxb5+ {[%clk 0:01:02.2]} 13... Qxb5 {[%clk
0:01:19.1]} 14. Bxb5+ {[%clk 0:01:02.8]} 14... Kd8 {[%clk 0:01:18.2]} 15. Rxa7
{[%clk 0:00:56.9]} 15... Rxa7 {[%clk 0:01:16.6]} 16. Bxa7 {[%clk 0:00:57.8]}
16... Nf6 {[%clk 0:01:12.4]} 17. c4 {[%clk 0:00:47.4]} 17... Kc7 {[%clk
0:01:04.6]} 18. Bd4 {[%clk 0:00:44.2]} 18... Ned7 {[%clk 0:00:43.9]} 19. Nf3
{[%clk 0:00:40.5]} 19... e6 {[%clk 0:00:35.3]} 20. dxe6 {[%clk 0:00:37.5]} 20...
fxe6 {[%clk 0:00:35.1]} 21. O-O {[%clk 0:00:37.5]} 21... Bc5 {[%clk 0:00:33.4]}
22. Re1 {[%clk 0:00:23.6]} 22... Bxd4 {[%clk 0:00:18.8]} 23. Nxd4 {[%clk
0:00:24.5]} 23... Re8 {[%clk 0:00:13.8]} 24. Rxe6 {[%clk 0:00:23.9]} 24... Rxe6
{[%clk 0:00:13.4]} 25. Nxe6+ {[%clk 0:00:24.8]} 25... Kd6 {[%clk 0:00:11.7]} 26.
Nxg7 {[%clk 0:00:24.7]} 26... Kc5 {[%clk 0:00:10.4]} 27. Ne6+ {[%clk 0:00:20.2]}
27... Kb6 {[%clk 0:00:08.4]} 28. f4 {[%clk 0:00:18.8]} 28... Nc5 {[%clk
0:00:07.1]} 29. Kf2 {[%clk 0:00:15.2]} 29... Nxe6 {[%clk 0:00:06.7]} 30. f5
{[%clk 0:00:15.2]} 30... Nc7 {[%clk 0:00:06.6]} 31. Ba4 {[%clk 0:00:13.3]} 31...
Kc5 {[%clk 0:00:05.6]} 32. Bb3 {[%clk 0:00:13.7]} 32... Na6 {[%clk 0:00:04.9]}
33. Kf3 {[%clk 0:00:12.5]} 33... Nb4 {[%clk 0:00:04.3]} 34. g4 {[%clk 0:00:12]}
34... Nd3 {[%clk 0:00:03.6]} 35. g5 {[%clk 0:00:11]} 35... Nd7 {[%clk
0:00:03.5]} 36. Ke4 {[%clk 0:00:10.6]} 36... Nb4 {[%clk 0:00:02.1]} 37. f6
{[%clk 0:00:10.4]} 37... Nc6 {[%clk 0:00:01.1]} 38. Kf5 {[%clk 0:00:10.4]} 1-0

[Event "Betsys MČR v online bleskovém šachu 2021"]
[Site "Chess.com"]
[Date "2021.04.17"]
[Round "7"]
[White "Ami2013"]
[Black "Molefancier"]
[Result "0-1"]
[WhiteElo "415"]
[BlackElo "1064"]
[TimeControl "180+1"]
[EndTime "10:12:07 PDT"]
[Termination "Uživatel Molefancier zvítězil na čas"]

1. e4 {[%clk 0:03:00.9]} 1... e5 {[%clk 0:02:56.9]} 2. Nf3 {[%clk 0:03:00.5]}
2... Nc6 {[%clk 0:02:56.5]} 3. Bb5 {[%clk 0:02:59]} 3... a6 {[%clk 0:02:53.3]}
4. Ba4 {[%clk 0:02:57.7]} 4... Nf6 {[%clk 0:02:50.9]} 5. Nc3 {[%clk 0:02:54.7]}
5... Bc5 {[%clk 0:02:41.3]} 6. O-O {[%clk 0:02:50.5]} 6... b5 {[%clk 0:02:33.9]}
7. Bb3 {[%clk 0:02:47.3]} 7... O-O {[%clk 0:02:31.5]} 8. h3 {[%clk 0:02:42.6]}
8... b4 {[%clk 0:02:20.3]} 9. Nd5 {[%clk 0:02:38]} 9... Nd4 {[%clk 0:02:14.6]}
10. Nxd4 {[%clk 0:02:33]} 10... Bxd4 {[%clk 0:02:12]} 11. Nxf6+ {[%clk
0:02:31.1]} 11... Qxf6 {[%clk 0:02:10.3]} 12. d3 {[%clk 0:02:25.5]} 12... Bb7
{[%clk 0:02:04.4]} 13. Bd2 {[%clk 0:02:19]} 13... a5 {[%clk 0:01:59.8]} 14. a4
{[%clk 0:02:16.6]} 14... Bxb2 {[%clk 0:01:56.7]} 15. Rb1 {[%clk 0:02:12.5]}
15... Bd4 {[%clk 0:01:51.9]} 16. Be3 {[%clk 0:02:08.1]} 16... Bc3 {[%clk
0:01:47.2]} 17. Qc1 {[%clk 0:02:00.6]} 17... d6 {[%clk 0:01:42.1]} 18. Bg5
{[%clk 0:01:59.3]} 18... Qg6 {[%clk 0:01:34.5]} 19. Qe3 {[%clk 0:01:45.7]} 19...
Kh8 {[%clk 0:01:31.7]} 20. Qg3 {[%clk 0:01:38.8]} 20... h6 {[%clk 0:01:21]} 21.
Bh4 {[%clk 0:01:13.3]} 21... Qxg3 {[%clk 0:01:16.2]} 22. Bxg3 {[%clk 0:01:12.7]}
22... c5 {[%clk 0:01:12.5]} 23. d4 {[%clk 0:00:49.6]} 23... cxd4 {[%clk
0:01:05.9]} 24. Rbd1 {[%clk 0:00:42.5]} 24... Bxe4 {[%clk 0:01:01.4]} 25. f3
{[%clk 0:00:35.6]} 25... Bb7 {[%clk 0:00:53.7]} 26. Rd3 {[%clk 0:00:30.3]} 26...
Ba6 {[%clk 0:00:51.7]} 27. Rdd1 {[%clk 0:00:22.5]} 27... Bxf1 {[%clk 0:00:50]}
28. Rxf1 {[%clk 0:00:21.1]} 28... d3 {[%clk 0:00:43.9]} 29. cxd3 {[%clk
0:00:19.8]} 29... Bd4+ {[%clk 0:00:40.6]} 30. Bf2 {[%clk 0:00:18]} 30... Bxf2+
{[%clk 0:00:39]} 31. Rxf2 {[%clk 0:00:18]} 31... Rac8 {[%clk 0:00:38.6]} 32. Re2
{[%clk 0:00:17.3]} 32... Rc1+ {[%clk 0:00:37.7]} 33. Kh2 {[%clk 0:00:15.9]}
33... Rb1 {[%clk 0:00:36.8]} 34. Bd5 {[%clk 0:00:13.9]} 34... b3 {[%clk
0:00:35.4]} 35. d4 {[%clk 0:00:13.1]} 35... exd4 {[%clk 0:00:31.8]} 36. Re4
{[%clk 0:00:10.8]} 36... b2 {[%clk 0:00:29.4]} 37. Rxd4 {[%clk 0:00:10]} 37...
Rc1 {[%clk 0:00:26.6]} 38. Re4 {[%clk 0:00:06.3]} 38... b1=Q {[%clk 0:00:25.5]}
39. Rg4 {[%clk 0:00:04]} 39... Rh1+ {[%clk 0:00:23.7]} 40. Kg3 {[%clk
0:00:02.5]} 40... Qf5 {[%clk 0:00:22]} 0-1

[Event "Betsys MČR v online bleskovém šachu 2021"]
[Site "Chess.com"]
[Date "2021.04.17"]
[Round "7"]
[White "polik1112"]
[Black "WhiteLittleHorse"]
[Result "1-0"]
[WhiteElo "1345"]
[BlackElo "965"]
[TimeControl "180+1"]
[EndTime "10:12:08 PDT"]
[Termination "Uživatel polik1112 zvítězil na čas"]

1. e4 {[%clk 0:03:00.9]} 1... e5 {[%clk 0:03:00.1]} 2. Nf3 {[%clk 0:03:00.7]}
2... Nc6 {[%clk 0:02:59.8]} 3. Bb5 {[%clk 0:03:00.4]} 3... Bc5 {[%clk
0:02:57.9]} 4. O-O {[%clk 0:02:59.2]} 4... Nf6 {[%clk 0:02:55.1]} 5. Bxc6 {[%clk
0:02:57.8]} 5... dxc6 {[%clk 0:02:52.7]} 6. Nxe5 {[%clk 0:02:57.6]} 6... O-O
{[%clk 0:02:47.4]} 7. d3 {[%clk 0:02:55.6]} 7... h6 {[%clk 0:02:45.2]} 8. Nc3
{[%clk 0:02:52.8]} 8... Bd4 {[%clk 0:02:43.3]} 9. Nf3 {[%clk 0:02:50.7]} 9...
Bg4 {[%clk 0:02:41.5]} 10. Bd2 {[%clk 0:02:48.6]} 10... Bxc3 {[%clk 0:02:40.8]}
11. Bxc3 {[%clk 0:02:48.4]} 11... a5 {[%clk 0:02:35.4]} 12. h3 {[%clk
0:02:47.8]} 12... Bh5 {[%clk 0:02:33.9]} 13. Qe2 {[%clk 0:02:42.7]} 13... Re8
{[%clk 0:02:25.8]} 14. Rfe1 {[%clk 0:02:32.3]} 14... b5 {[%clk 0:02:17.2]} 15.
a3 {[%clk 0:02:29.2]} 15... Qe7 {[%clk 0:02:08.7]} 16. b3 {[%clk 0:01:57.5]}
16... b4 {[%clk 0:02:06.5]} 17. axb4 {[%clk 0:01:56.1]} 17... axb4 {[%clk
0:02:05.8]} 18. Bb2 {[%clk 0:01:51.8]} 18... Rxa1 {[%clk 0:02:03]} 19. Rxa1
{[%clk 0:01:51.3]} 19... c5 {[%clk 0:02:01.6]} 20. Qe3 {[%clk 0:01:47.3]} 20...
c6 {[%clk 0:01:45.1]} 21. Ra5 {[%clk 0:01:25.6]} 21... Bxf3 {[%clk 0:01:36.4]}
22. Qxf3 {[%clk 0:01:24.7]} 22... Qd6 {[%clk 0:01:26.2]} 23. Qe3 {[%clk
0:01:07.7]} 23... Nd5 {[%clk 0:01:17.3]} 24. Qxc5 {[%clk 0:00:59.8]} 24... Qxc5
{[%clk 0:01:13.4]} 25. Rxc5 {[%clk 0:00:59.2]} 25... Nf6 {[%clk 0:00:53.1]} 26.
Rxc6 {[%clk 0:00:56.5]} 26... Kh7 {[%clk 0:00:50.4]} 27. Bxf6 {[%clk 0:00:55.8]}
27... gxf6 {[%clk 0:00:47.2]} 28. Rxf6 {[%clk 0:00:55.9]} 28... Kg7 {[%clk
0:00:44.7]} 29. Rb6 {[%clk 0:00:55.5]} 29... Rc8 {[%clk 0:00:41.9]} 30. Rxb4
{[%clk 0:00:51.2]} 30... Rxc2 {[%clk 0:00:42.1]} 31. d4 {[%clk 0:00:46.3]} 31...
Re2 {[%clk 0:00:32.4]} 32. f3 {[%clk 0:00:43.7]} 32... Kg6 {[%clk 0:00:27.5]}
33. Rc4 {[%clk 0:00:41.9]} 33... f5 {[%clk 0:00:23.4]} 34. e5 {[%clk 0:00:38.1]}
34... Re1+ {[%clk 0:00:18.1]} 35. Kf2 {[%clk 0:00:37.1]} 35... Ra1 {[%clk
0:00:13.3]} 36. d5 {[%clk 0:00:30.6]} 36... Ra5 {[%clk 0:00:11.1]} 37. Rd4
{[%clk 0:00:28.8]} 37... Rc5 {[%clk 0:00:07.2]} 38. f4 {[%clk 0:00:25.3]} 38...
h5 {[%clk 0:00:05.2]} 39. d6 {[%clk 0:00:24.7]} 39... Ra5 {[%clk 0:00:01.3]} 40.
d7 {[%clk 0:00:24.3]} 40... Ra8 {[%clk 0:00:01.2]} 41. d8=Q {[%clk 0:00:23.9]}
41... Rxd8 {[%clk 0:00:01.2]} 42. Rxd8 {[%clk 0:00:24.1]} 1-0

[Event "Betsys MČR v online bleskovém šachu 2021"]
[Site "Chess.com"]
[Date "2021.04.17"]
[Round "7"]
[White "Filipdol"]
[Black "Chessillusion213"]
[Result "1-0"]
[WhiteElo "1911"]
[BlackElo "2160"]
[TimeControl "180+1"]
[EndTime "10:12:09 PDT"]
[Termination "Uživatel Filipdol zvítězil po vzdání soupeře"]

1. e4 {[%clk 0:03:00.9]} 1... c5 {[%clk 0:02:59.2]} 2. Nc3 {[%clk 0:03:00]} 2...
Nc6 {[%clk 0:02:57.8]} 3. f4 {[%clk 0:02:59.5]} 3... g6 {[%clk 0:02:57.6]} 4.
Bb5 {[%clk 0:02:58.8]} 4... Bg7 {[%clk 0:02:57.5]} 5. Bxc6 {[%clk 0:02:58.6]}
5... bxc6 {[%clk 0:02:57.2]} 6. Nf3 {[%clk 0:02:59.2]} 6... e6 {[%clk
0:02:55.9]} 7. d3 {[%clk 0:02:56.7]} 7... Ne7 {[%clk 0:02:55.1]} 8. O-O {[%clk
0:02:54.9]} 8... d5 {[%clk 0:02:49]} 9. e5 {[%clk 0:02:53.9]} 9... O-O {[%clk
0:02:48.5]} 10. Na4 {[%clk 0:02:48.6]} 10... Qa5 {[%clk 0:02:30.7]} 11. c4
{[%clk 0:02:46.4]} 11... dxc4 {[%clk 0:02:12.2]} 12. dxc4 {[%clk 0:02:44.4]}
12... Rd8 {[%clk 0:02:00.8]} 13. Qc2 {[%clk 0:02:38.8]} 13... Nf5 {[%clk
0:01:53]} 14. Bd2 {[%clk 0:02:20.9]} 14... Qc7 {[%clk 0:01:38.7]} 15. b3 {[%clk
0:01:58.2]} 15... Nd4 {[%clk 0:01:34.7]} 16. Qb2 {[%clk 0:01:40.6]} 16... Qe7
{[%clk 0:01:29.9]} 17. Be3 {[%clk 0:01:35.1]} 17... Rb8 {[%clk 0:01:11.2]} 18.
Nxc5 {[%clk 0:01:13]} 18... Qxc5 {[%clk 0:00:58.1]} 19. Bxd4 {[%clk 0:01:10.6]}
19... Qb4 {[%clk 0:00:53.5]} 20. Qf2 {[%clk 0:01:00.4]} 20... a5 {[%clk
0:00:47.2]} 21. Bc5 {[%clk 0:00:57.5]} 21... Qb7 {[%clk 0:00:44.7]} 22. Rad1
{[%clk 0:00:55.2]} 22... Bd7 {[%clk 0:00:42.2]} 23. Ng5 {[%clk 0:00:43.8]} 23...
Bf8 {[%clk 0:00:30.9]} 24. Ne4 {[%clk 0:00:38]} 24... a4 {[%clk 0:00:21.7]} 25.
Nf6+ {[%clk 0:00:30.7]} 25... Kg7 {[%clk 0:00:20.2]} 26. Bxf8+ {[%clk
0:00:28.7]} 26... Kxf8 {[%clk 0:00:19.9]} 27. Nxh7+ {[%clk 0:00:25.2]} 27... Kg7
{[%clk 0:00:20]} 28. Nf6 {[%clk 0:00:25.3]} 28... Be8 {[%clk 0:00:19.3]} 29.
Rxd8 {[%clk 0:00:23.7]} 29... Rxd8 {[%clk 0:00:19.2]} 30. Qh4 {[%clk 0:00:23]}
30... Qb6+ {[%clk 0:00:19]} 31. Kh1 {[%clk 0:00:22.4]} 31... axb3 {[%clk
0:00:16.1]} 32. Qh7+ {[%clk 0:00:20.3]} 32... Kf8 {[%clk 0:00:16.1]} 33. Qh8+
{[%clk 0:00:17.2]} 33... Ke7 {[%clk 0:00:16.2]} 34. Nxe8 {[%clk 0:00:17.2]}
34... Rxe8 {[%clk 0:00:15.9]} 35. Qf6+ {[%clk 0:00:17.4]} 35... Kd7 {[%clk
0:00:15.6]} 36. Qxf7+ {[%clk 0:00:17.3]} 36... Re7 {[%clk 0:00:12.5]} 37. Rd1+
{[%clk 0:00:16.4]} 37... Kc8 {[%clk 0:00:11.5]} 38. Qxe7 {[%clk 0:00:16.2]}
38... bxa2 {[%clk 0:00:11.1]} 39. Qe8+ {[%clk 0:00:16.1]} 39... Kb7 {[%clk
0:00:09.7]} 40. Rd7+ {[%clk 0:00:16.4]} 40... Ka6 {[%clk 0:00:09.5]} 41. Qa8+
{[%clk 0:00:16.7]} 41... Qa7 {[%clk 0:00:09.2]} 42. Rxa7+ {[%clk 0:00:16.6]}
42... Kb6 {[%clk 0:00:08.6]} 43. Rxa2 {[%clk 0:00:17.2]} 43... Kc5 {[%clk
0:00:07.7]} 44. Qa7+ {[%clk 0:00:17.3]} 1-0

[Event "Betsys MČR v online bleskovém šachu 2021"]
[Site "Chess.com"]
[Date "2021.04.17"]
[Round "7"]
[White "Tlaskin"]
[Black "ReitteN"]
[Result "0-1"]
[WhiteElo "1365"]
[BlackElo "1759"]
[TimeControl "180+1"]
[EndTime "10:12:09 PDT"]
[Termination "Uživatel ReitteN zvítězil na čas"]

1. e4 {[%clk 0:02:56.9]} 1... c6 {[%clk 0:02:54.1]} 2. d4 {[%clk 0:02:54.7]}
2... d5 {[%clk 0:02:53.6]} 3. Nc3 {[%clk 0:02:52.1]} 3... dxe4 {[%clk
0:02:52.8]} 4. Nxe4 {[%clk 0:02:51.7]} 4... Bf5 {[%clk 0:02:53.2]} 5. Ng3 {[%clk
0:02:40.9]} 5... Bg6 {[%clk 0:02:53.2]} 6. Bc4 {[%clk 0:02:34.3]} 6... e6 {[%clk
0:02:50.7]} 7. Nf3 {[%clk 0:02:32.9]} 7... Nd7 {[%clk 0:02:47.1]} 8. O-O {[%clk
0:02:30.3]} 8... Ngf6 {[%clk 0:02:45.5]} 9. Re1 {[%clk 0:02:23.7]} 9... Be7
{[%clk 0:02:43]} 10. c3 {[%clk 0:02:11]} 10... O-O {[%clk 0:02:40.7]} 11. Bg5
{[%clk 0:02:00.7]} 11... h6 {[%clk 0:02:37.5]} 12. Bh4 {[%clk 0:01:53.5]} 12...
b5 {[%clk 0:02:23.1]} 13. Bd3 {[%clk 0:01:43.7]} 13... Bxd3 {[%clk 0:02:21.4]}
14. Qxd3 {[%clk 0:01:42.1]} 14... Nb6 {[%clk 0:02:21.6]} 15. Rad1 {[%clk
0:01:37.5]} 15... Rc8 {[%clk 0:01:59.9]} 16. b3 {[%clk 0:01:30.3]} 16... Nfd5
{[%clk 0:01:48.2]} 17. Bxe7 {[%clk 0:01:20.7]} 17... Qxe7 {[%clk 0:01:49.1]} 18.
Ne5 {[%clk 0:01:16]} 18... Rfd8 {[%clk 0:01:38.6]} 19. Re4 {[%clk 0:01:03.8]}
19... Nf6 {[%clk 0:01:25.6]} 20. Rf4 {[%clk 0:00:49.1]} 20... Nbd5 {[%clk
0:01:17.1]} 21. Rf3 {[%clk 0:00:38.7]} 21... Qa3 {[%clk 0:00:56.5]} 22. Ne4
{[%clk 0:00:28.8]} 22... Qxa2 {[%clk 0:00:46.7]} 23. Nxf6+ {[%clk 0:00:17]}
23... Nxf6 {[%clk 0:00:47.6]} 24. g4 {[%clk 0:00:10.3]} 24... Rc7 {[%clk
0:00:29.3]} 25. h4 {[%clk 0:00:07.8]} 25... Qxb3 {[%clk 0:00:18.4]} 26. g5
{[%clk 0:00:07.4]} 26... hxg5 {[%clk 0:00:07.7]} 27. hxg5 {[%clk 0:00:07.4]}
27... Nd5 {[%clk 0:00:05.5]} 28. Rh3 {[%clk 0:00:07]} 28... Qxc3 {[%clk
0:00:02.2]} 29. Qh7+ {[%clk 0:00:06.4]} 29... Kf8 {[%clk 0:00:02.2]} 30. Rxc3
{[%clk 0:00:06]} 30... Nxc3 {[%clk 0:00:01.5]} 31. Rc1 {[%clk 0:00:05.4]} 31...
Rxd4 {[%clk 0:00:01.9]} 32. Qh8+ {[%clk 0:00:04.9]} 32... Ke7 {[%clk 0:00:02.1]}
33. Qxg7 {[%clk 0:00:04]} 33... Rcd7 {[%clk 0:00:02.8]} 34. Qxf7+ {[%clk
0:00:03.5]} 34... Kd6 {[%clk 0:00:03.5]} 35. Ng6 {[%clk 0:00:02.5]} 35... Rd1+
{[%clk 0:00:03.5]} 36. Rxd1+ {[%clk 0:00:01.6]} 36... Nxd1 {[%clk 0:00:04.4]}
0-1